bitfinex/quotes_BTCUSD_20251016
["timestamp","ask_amount","ask_price","bid_price","bid_amount"]
[1760585654586,0.5482272,111810.0,111800.0,0.29161087]
[1760585654758,0.56963763,111810.0,111800.0,0.17889087]
[1760585654910,0.56963763,111810.0,111800.0,0.29157087]
[1760585655517,0.55963763,111810.0,111800.0,0.29157087]
[1760585656867,0.55963763,111810.0,111800.0,0.17889087]
[1760585657049,0.55963763,111810.0,111800.0,0.29157087]
[1760585657681,0.55963763,111810.0,111800.0,0.11268]
[1760585657865,0.56963763,111810.0,111800.0,0.11268]
[1760585659519,0.56963763,111810.0,111790.0,0.27753936]
[1760585659692,0.56963763,111810.0,111800.0,0.11268]
[1760585660314,0.56963763,111810.0,111800.0,0.13056908]
[1760585660519,0.17889087,111800.0,111790.0,0.27754051]
[1760585660696,0.55964354,111800.0,111790.0,0.27754051]
[1760585660910,0.55964354,111800.0,111790.0,0.39022051]
[1760585662073,0.55964354,111800.0,111790.0,0.39122051]
[1760585663442,0.55964354,111800.0,111790.0,0.27854051]
[1760585663649,0.55964354,111800.0,111790.0,0.39122051]
[1760585663859,0.95039621,111800.0,111790.0,0.001]
[1760585664232,0.95039621,111800.0,111790.0,0.11368]
[1760585666129,0.95039621,111800.0,111790.0,0.001]
[1760585666261,5.70649821,111800.0,111790.0,0.11368]
[1760585666671,5.70649821,111800.0,111790.0,0.001]
[1760585666884,5.70649821,111800.0,111790.0,0.11368]
[1760585667091,6.04649821,111800.0,111790.0,0.001]
[1760585667618,6.26642325,111800.0,111790.0,0.001]
[1760585667784,6.18908587,111800.0,111790.0,0.11368]
[1760585668200,6.18908587,111800.0,111790.0,0.11268]
[1760585668619,6.16308782,111800.0,111790.0,0.11268]
[1760585668827,0.17890687,111790.0,111780.0,0.00014917]
[1760585669036,0.56965954,111790.0,111780.0,0.11282917]
[1760585670130,0.18890687,111790.0,111780.0,0.11382917]
[1760585670336,0.56965954,111790.0,111780.0,0.11382917]
[1760585671494,0.56965954,111790.0,111780.0,0.00114917]
[1760585671753,0.56965954,111790.0,111780.0,0.11382917]
[1760585673090,0.56965954,111790.0,111780.0,0.00114917]
[1760585673292,0.56965954,111790.0,111780.0,0.11382917]
[1760585674907,0.56965954,111790.0,111780.0,0.00114917]
[1760585675124,0.56965954,111790.0,111780.0,0.11382917]
[1760585675763,0.56965954,111790.0,111780.0,0.00114917]
[1760585675975,0.56965954,111790.0,111780.0,0.11382917]
[1760585676224,0.55965954,111790.0,111780.0,0.11382917]
[1760585676433,0.55965954,111790.0,111780.0,0.18007205]
[1760585676647,0.17890687,111790.0,111780.0,0.19796433]
[1760585676858,0.55965954,111790.0,111780.0,0.29275205]
[1760585677922,0.55965954,111790.0,111780.0,0.18007205]
[1760585678127,0.55965954,111790.0,111780.0,0.29275205]
[1760585680238,0.55965954,111790.0,111780.0,0.18007205]
[1760585680511,0.55965954,111790.0,111780.0,0.29275205]
[1760585681158,0.55965954,111790.0,111780.0,0.11382917]
[1760585681349,0.55965954,111790.0,111780.0,0.13172145]
[1760585682612,0.17890687,111790.0,111780.0,0.01904145]
[1760585682827,0.17890687,111790.0,111780.0,0.13172145]
[1760585684097,0.17890687,111790.0,111780.0,0.31064433]
[1760585684300,0.17890687,111790.0,111780.0,0.29275205]
[1760585684438,0.17890687,111790.0,111780.0,0.18007205]
[1760585684639,0.17890687,111790.0,111780.0,0.29275205]
[1760585686107,0.17890687,111790.0,111780.0,0.11382917]
[1760585686314,0.55965954,111790.0,111780.0,0.11382917]
[1760585686904,0.58656074,111790.0,111780.0,0.11382917]
[1760585687114,0.58656074,111790.0,111780.0,0.00114917]
[1760585687315,0.92656074,111790.0,111780.0,0.11382917]
[1760585688478,0.93656074,111790.0,111780.0,0.11382917]
[1760585689579,0.93656074,111790.0,111780.0,0.00114917]
[1760585689805,0.93656074,111790.0,111780.0,0.11382917]
[1760585690127,0.93656074,111790.0,111780.0,0.00114917]
[1760585690361,5.69266274,111790.0,111780.0,0.11382917]
[1760585691379,5.69285636,111790.0,111780.0,0.11382917]
[1760585691599,5.69285636,111790.0,111780.0,0.00114917]
[1760585691765,5.71218186,111790.0,111780.0,0.11382917]
[1760585692179,5.71218186,111790.0,111780.0,0.00114917]
[1760585692383,5.71218186,111790.0,111780.0,0.11382917]
[1760585692811,5.73817991,111790.0,111780.0,0.11382917]
[1760585693432,5.73817991,111790.0,111780.0,0.00114917]
[1760585693640,5.73817991,111790.0,111780.0,0.11382917]
[1760585694090,5.71218186,111790.0,111780.0,0.11382917]
[1760585694986,5.71218186,111790.0,111780.0,0.00114917]
[1760585695199,5.71218186,111790.0,111780.0,0.11382917]
[1760585696741,5.71218186,111790.0,111780.0,0.00114917]
[1760585696944,5.71218186,111790.0,111780.0,0.11382917]
[1760585698259,5.71218186,111790.0,111780.0,0.00114917]
[1760585698480,5.71218186,111790.0,111780.0,0.11382917]
[1760585698888,5.71218186,111790.0,111780.0,0.00114917]
[1760585699110,5.71218186,111790.0,111780.0,0.11382917]
[1760585699515,5.71218186,111790.0,111780.0,0.00114917]
[1760585699694,5.71218186,111790.0,111780.0,0.11382917]
[1760585700043,5.71218186,111790.0,111780.0,0.00114917]
[1760585700464,5.71218186,111790.0,111780.0,0.11382917]
[1760585700659,5.71216784,111790.0,111780.0,0.11382917]
[1760585701921,5.71216678,111790.0,111780.0,0.11382917]
[1760585702761,5.71216678,111790.0,111780.0,0.00114917]
[1760585702964,5.71216678,111790.0,111780.0,0.11382917]
[1760585704833,5.33122049,111790.0,111780.0,0.11382917]
[1760585705065,5.33122049,111790.0,111780.0,0.29275205]
[1760585705066,5.29431929,111790.0,111780.0,0.29275205]
[1760585705283,0.51890687,111790.0,111780.0,0.29275205]
[1760585705499,0.51890687,111790.0,111780.0,0.18007205]
[1760585705755,0.51890687,111790.0,111780.0,0.29275205]
[1760585705968,0.17890687,111790.0,111780.0,0.29275205]
[1760585706186,0.55985316,111790.0,111780.0,0.11382917]
[1760585706401,0.55985316,111790.0,111780.0,0.00114917]
[1760585706609,0.55985316,111790.0,111780.0,0.11382917]
[1760585706996,0.55985316,111790.0,111780.0,0.00114917]
[1760585707211,5.35195321,111790.0,111780.0,0.00114917]
[1760585707422,5.35195321,111790.0,111780.0,0.11382917]
[1760585708801,5.32595516,111790.0,111780.0,0.11382917]
[1760585712581,5.32595516,111790.0,111780.0,0.00114917]
[1760585712782,5.66595516,111790.0,111780.0,0.11382917]
[1760585715412,5.68528366,111790.0,111780.0,0.11382917]
[1760585716892,5.68528366,111790.0,111780.0,0.00114917]
[1760585717329,0.55986917,111780.0,111770.0,0.14798071]
[1760585717545,0.17897255,111780.0,111770.0,0.26062071]
[1760585717743,0.17897255,111780.0,111770.0,0.13008683]
[1760585717889,0.17897255,111780.0,111770.0,0.26062071]
[1760585718111,0.17897255,111780.0,111770.0,0.24272683]
[1760585718542,0.17897255,111780.0,111770.0,0.24372683]
[1760585718918,0.17897255,111780.0,111770.0,0.24472683]
[1760585719529,0.17897255,111780.0,111770.0,0.002]
[1760585719841,0.17897255,111780.0,111770.0,0.19883277]
[1760585720168,0.17897255,111780.0,111770.0,0.18093889]
[1760585720363,0.17897255,111780.0,111770.0,0.29357889]
[1760585720662,0.17897255,111780.0,111770.0,0.18093889]
[1760585721401,0.17897255,111780.0,111770.0,0.002]
[1760585721609,0.17897255,111780.0,111770.0,0.11464]
[1760585721822,0.17897255,111780.0,111770.0,0.002]
[1760585722035,0.55991884,111780.0,111770.0,0.11464]
[1760585722274,0.55991884,111780.0,111770.0,0.002]
[1760585722495,0.55991884,111780.0,111770.0,0.11464]
[1760585722496,0.61524566,111780.0,111770.0,0.11464]
[1760585722733,0.55991884,111780.0,111770.0,0.11464]
[1760585722928,0.55991884,111780.0,111770.0,0.13253388]
[1760585724169,0.55991884,111780.0,111770.0,0.01989388]
[1760585724393,0.56991884,111780.0,111770.0,0.01989388]
[1760585724584,0.56991884,111780.0,111770.0,0.13253388]
[1760585725144,0.56991884,111780.0,111770.0,0.01989388]
[1760585725367,0.56991884,111780.0,111770.0,0.19883277]
[1760585725590,0.56991884,111780.0,111770.0,0.18093889]
[1760585725804,0.56991884,111780.0,111770.0,0.29357889]
[1760585726409,0.56991884,111780.0,111770.0,0.11464]
[1760585726738,0.56991884,111780.0,111770.0,0.13253388]
[1760585727350,0.18897255,111780.0,111770.0,0.13253388]
[1760585728562,0.56991884,111780.0,111770.0,0.13253388]
[1760585730833,0.56991884,111780.0,111770.0,0.002]
[1760585731252,0.56991884,111780.0,111770.0,0.13253388]
[1760585731449,0.56991884,111780.0,111770.0,0.01989388]
[1760585731889,0.56991884,111780.0,111770.0,0.13253388]
[1760585732087,0.56991884,111780.0,111770.0,0.01989388]
[1760585732290,0.56991884,111780.0,111770.0,0.13253388]
[1760585732508,0.56991884,111780.0,111770.0,0.01989388]
[1760585732919,0.56991884,111780.0,111770.0,0.13253388]
[1760585733121,0.56991884,111780.0,111770.0,0.11464]
[1760585733336,0.56991884,111780.0,111770.0,0.002]
[1760585733508,0.56991884,111780.0,111770.0,0.11464]
[1760585733709,5.66602084,111780.0,111770.0,0.002]
[1760585733932,6.06631331,111780.0,111770.0,0.002]
[1760585734331,6.06631331,111780.0,111770.0,0.11464]
[1760585734569,6.06631331,111780.0,111770.0,0.001]
[1760585734716,6.06631331,111780.0,111770.0,0.11264]
[1760585734929,0.1789549,111760.0,111750.0,0.28755883]
[1760585735140,0.17895141,111770.0,111750.0,0.37724895]
[1760585735141,0.5598977,111770.0,111750.0,0.37724895]
[1760585735317,0.5598977,111770.0,111750.0,0.41813685]
[1760585735739,0.5598977,111770.0,111750.0,0.30549685]
[1760585735946,0.5598977,111770.0,111760.0,0.11264]
[1760585736361,0.5598977,111770.0,111750.0,0.30649685]
[1760585736547,0.58632485,111770.0,111760.0,0.11264]
[1760585737186,0.1789549,111760.0,111750.0,0.30549685]
[1760585737404,0.58632485,111770.0,111750.0,0.41813685]
[1760585737628,0.58632485,111770.0,111750.0,0.30549685]
[1760585737846,0.58632485,111770.0,111760.0,0.11264]
[1760585738483,0.1789549,111760.0,111750.0,0.30549685]
[1760585738664,0.1789549,111760.0,111750.0,0.27859212]
[1760585739090,0.1789549,111760.0,111750.0,0.39123212]
[1760585739301,0.1789549,111760.0,111750.0,0.27859212]
[1760585739513,0.1789549,111760.0,111750.0,0.27959212]
[1760585739725,0.1789549,111760.0,111750.0,0.3832839]
[1760585739938,0.1789549,111760.0,111750.0,0.2706439]
[1760585740164,0.55990119,111760.0,111750.0,0.11462287]
[1760585740574,0.55990119,111760.0,111750.0,0.00198287]
[1760585741005,0.55990119,111760.0,111750.0,0.11462287]
[1760585741006,0.1789549,111760.0,111750.0,0.11462287]
[1760585741213,0.55990119,111760.0,111750.0,0.11462287]
[1760585741637,5.31600319,111760.0,111750.0,0.11462287]
[1760585741853,5.31600319,111760.0,111750.0,0.00098287]
[1760585742082,5.66600319,111760.0,111750.0,0.00098287]
[1760585742291,5.66600319,111760.0,111750.0,0.11362287]
[1760585743224,5.66600319,111760.0,111750.0,0.00098287]
[1760585743443,6.26945485,111760.0,111750.0,0.11362287]
[1760585743657,6.31313812,111760.0,111750.0,0.00098287]
[1760585743870,5.93957966,111760.0,111750.0,0.00098287]
[1760585744081,5.93957966,111760.0,111750.0,0.11362287]
[1760585744292,6.32052595,111760.0,111750.0,0.11362287]
[1760585744500,6.29636759,111760.0,111750.0,0.11362287]
[1760585744921,6.29636759,111760.0,111750.0,0.00098287]
[1760585745144,6.20668551,111760.0,111750.0,0.00098287]
[1760585745611,6.20202688,111760.0,111750.0,0.00098287]
[1760585745888,6.20202688,111760.0,111750.0,0.11362287]
[1760585746319,6.20202688,111760.0,111750.0,0.00098287]
[1760585746532,6.20302688,111760.0,111750.0,0.11362287]
[1760585746735,6.20302688,111760.0,111750.0,0.00098287]
[1760585746973,6.20302688,111760.0,111750.0,0.11362287]
[1760585747187,6.20302688,111760.0,111750.0,0.00098287]
[1760585747403,6.20302688,111760.0,111750.0,0.11362287]
[1760585748067,6.20302688,111760.0,111750.0,0.00098287]
[1760585748319,6.20302688,111760.0,111750.0,0.11362287]
[1760585748320,5.88605731,111760.0,111750.0,0.11362287]
[1760585748537,6.13535731,111760.0,111750.0,0.11362287]
[1760585748978,6.13534327,111760.0,111750.0,0.00098287]
[1760585749193,6.13534327,111760.0,111750.0,0.11362287]
[1760585749407,6.52094848,111760.0,111750.0,0.00098287]
[1760585749824,6.52094848,111760.0,111750.0,0.11362287]
[1760585750014,6.47374124,111760.0,111750.0,0.11362287]
[1760585750426,6.4569858,111760.0,111750.0,0.11362287]
[1760585750839,6.47372354,111760.0,111750.0,0.00098287]
[1760585751308,6.4569858,111760.0,111750.0,0.00098287]
[1760585751511,6.86302294,111760.0,111750.0,0.11362287]
[1760585752195,6.95270502,111760.0,111750.0,0.11362287]
[1760585752636,6.86302294,111760.0,111750.0,0.11362287]
[1760585754164,6.86302294,111760.0,111750.0,0.00098287]
[1760585754383,6.87974248,111760.0,111750.0,0.11362287]
[1760585754621,6.87974263,111760.0,111750.0,0.11362287]
[1760585755297,6.87974263,111760.0,111750.0,0.00098287]
[1760585755512,7.00560699,111760.0,111750.0,0.00098287]
[1760585756167,7.03781814,111760.0,111750.0,0.00098287]
[1760585756375,7.01365978,111760.0,111750.0,0.00098287]
[1760585756795,7.01365978,111760.0,111750.0,1e-08]
[1760585757010,7.37110659,111760.0,111750.0,1e-08]
[1760585757222,7.0297659,111760.0,111750.0,1e-08]
[1760585758040,7.56263165,111740.0,111730.0,1e-08]
[1760585758284,7.84045394,111740.0,111730.0,1e-08]
[1760585758462,7.88030946,111740.0,111730.0,1e-08]
[1760585758708,6.74012795,111740.0,111730.0,1e-08]
[1760585759335,6.74012795,111740.0,111730.0,0.00014882]
[1760585759336,6.33505998,111740.0,111730.0,0.00014882]
[1760585759547,5.95425972,111740.0,111730.0,0.00014882]
[1760585759987,5.93120629,111740.0,111730.0,0.00014882]
[1760585760201,6.27220629,111740.0,111730.0,0.00014882]
[1760585761059,6.27120629,111740.0,111730.0,0.00014882]
[1760585761271,6.03662636,111740.0,111730.0,0.00014882]
[1760585761477,6.21561329,111740.0,111730.0,0.00014882]
[1760585761942,5.45309905,111740.0,111730.0,0.00014882]
[1760585762222,6.21461329,111740.0,111730.0,0.00014882]
[1760585762432,5.45309905,111740.0,111730.0,0.00014882]
[1760585762647,6.21661329,111740.0,111730.0,0.00014882]
[1760585763552,6.65542098,111740.0,111730.0,0.00014882]
[1760585763796,6.69862586,111740.0,111730.0,0.00131482]
[1760585764004,6.7066427,111740.0,111730.0,0.00131482]
[1760585764236,0.17901897,111720.0,111710.0,1e-08]
[1760585764451,6.64926951,111720.0,111710.0,4.973e-05]
[1760585765524,6.68135734,111720.0,111710.0,4.973e-05]
[1760585765736,6.65729147,111720.0,111710.0,4.973e-05]
[1760585766224,6.67744292,111720.0,111710.0,4.973e-05]
[1760585766649,6.67744292,111720.0,111680.0,0.0004]
[1760585766650,0.56032418,111690.0,111680.0,0.0004]
[1760585766864,0.42058027,111690.0,111680.0,0.11357734]
[1760585767065,0.59964733,111690.0,111680.0,0.11357734]
[1760585767279,0.62300596,111690.0,111680.0,0.11357734]
[1760585767699,0.62300596,111690.0,111680.0,0.11361734]
[1760585768790,0.62300596,111690.0,111680.0,0.00089734]
[1760585769000,0.62300596,111690.0,111680.0,0.11357734]
[1760585769666,0.62300596,111690.0,111680.0,0.00089734]
[1760585769927,0.62300596,111690.0,111680.0,0.11357734]
[1760585770134,0.62300596,111690.0,111680.0,0.11649391]
[1760585770559,0.62300596,111690.0,111680.0,0.00381391]
[1760585770773,0.62300596,111690.0,111680.0,0.11649391]
[1760585771207,0.64706394,111690.0,111680.0,0.11649391]
[1760585772273,0.66378027,111690.0,111680.0,0.11649391]
[1760585773943,0.6958681,111690.0,111680.0,0.11649391]
[1760585775596,0.66378027,111690.0,111680.0,0.11649391]
[1760585776229,0.66378027,111690.0,111680.0,0.00381391]
[1760585776420,0.66378027,111690.0,111680.0,0.11649391]
[1760585776687,0.6958681,111690.0,111680.0,0.11649391]
[1760585776837,0.6958681,111690.0,111680.0,0.00381391]
[1760585777016,0.6958681,111690.0,111680.0,0.11649391]
[1760585777422,0.6958681,111690.0,111680.0,0.182897]
[1760585777633,0.11554392,111690.0,111680.0,0.295577]
[1760585777838,0.08345609,111690.0,111680.0,0.295577]
[1760585778253,0.04338113,111690.0,111680.0,0.67683412]
[1760585778463,0.01932315,111690.0,111680.0,0.67683412]
[1760585779486,0.01932315,111690.0,111680.0,0.56415412]
[1760585779715,0.01932315,111690.0,111680.0,0.67683412]
[1760585780328,0.04338113,111690.0,111680.0,0.67683412]
[1760585780710,0.04338113,111690.0,111680.0,0.56415412]
[1760585780955,0.04338113,111690.0,111680.0,0.67683412]
[1760585781613,0.04338113,111690.0,111680.0,0.295577]
[1760585782230,0.06011697,111690.0,111680.0,0.295577]
[1760585783493,0.06011697,111690.0,111680.0,0.182897]
[1760585783707,0.06011697,111690.0,111680.0,0.295577]
[1760585783919,0.62044115,111690.0,111680.0,0.11649391]
[1760585784136,0.65252898,111690.0,111680.0,0.11649391]
[1760585784354,0.65252898,111690.0,111680.0,0.00381391]
[1760585784576,0.66252898,111690.0,111680.0,0.11649391]
[1760585784786,0.48346192,111690.0,111680.0,0.3134853]
[1760585785027,0.48346192,111690.0,111680.0,0.182897]
[1760585785243,0.0922048,111690.0,111680.0,0.3134853]
[1760585785455,0.06011697,111690.0,111680.0,0.295577]
[1760585787385,0.06011697,111690.0,111680.0,0.56415412]
[1760585787619,0.06011697,111690.0,111680.0,0.67683412]
[1760585788273,0.06011697,111690.0,111680.0,0.182897]
[1760585788501,0.06011697,111690.0,111680.0,0.295577]
[1760585789229,0.06011697,111690.0,111680.0,0.182897]
[1760585789447,0.06011697,111690.0,111680.0,0.295577]
[1760585789656,0.23918403,111690.0,111680.0,0.295577]
[1760585790287,0.22244819,111690.0,111680.0,0.295577]
[1760585790508,0.19839021,111690.0,111680.0,0.295577]
[1760585790714,0.01932315,111690.0,111680.0,0.295577]
[1760585791560,0.01932315,111690.0,111680.0,0.182897]
[1760585791763,0.01932315,111690.0,111680.0,0.295577]
[1760585793446,0.04338113,111690.0,111680.0,0.295577]
[1760585793654,0.04338113,111690.0,111680.0,0.182897]
[1760585793881,0.04338113,111690.0,111680.0,0.295577]
[1760585794103,0.04338113,111690.0,111670.0,0.00048]
[1760585794104,5.21959209,111680.0,111670.0,0.00048]
[1760585794329,6.55966303,111680.0,111670.0,0.00048]
[1760585794545,6.24282822,111680.0,111670.0,0.00048]
[1760585794757,6.24282822,111680.0,111670.0,0.11328]
[1760585795397,6.17840591,111680.0,111670.0,0.11328]
[1760585795637,6.30427027,111680.0,111650.0,0.0004]
[1760585795841,5.21965625,111640.0,111630.0,0.0004]
[1760585796075,6.57749108,111640.0,111630.0,0.0004]
[1760585796294,6.58192585,111640.0,111630.0,0.11328]
[1760585796590,6.60886793,111640.0,111630.0,0.09564]
[1760585796801,6.60886793,111640.0,111630.0,0.11328]
[1760585797011,6.60886793,111640.0,111630.0,0.00044969]
[1760585797234,6.51574304,111640.0,111630.0,0.10832969]
[1760585797459,6.51574304,111640.0,111620.0,0.11328]
[1760585797460,0.1791633,111630.0,111620.0,0.11328]
[1760585797704,0.62059538,111630.0,111620.0,0.11336904]
[1760585798557,0.62059538,111630.0,111620.0,0.11340904]
[1760585798779,0.62059538,111630.0,111620.0,0.00048904]
[1760585798995,0.62059538,111630.0,111620.0,0.11340904]
[1760585799426,0.60380549,111630.0,111620.0,0.00048904]
[1760585799651,0.04338507,111630.0,111620.0,0.38227851]
[1760585799889,0.07550271,111650.0,111620.0,1.14479275]
[1760585800107,0.6127422,111670.0,111640.0,0.56040437]
[1760585800373,0.17911656,111660.0,111650.0,0.01791312]
[1760585800590,0.56037368,111660.0,111650.0,0.13099312]
[1760585801216,0.56037368,111660.0,111650.0,0.31012433]
[1760585801424,0.56037368,111660.0,111650.0,0.29221121]
[1760585802279,0.38125712,111660.0,111650.0,0.29221121]
[1760585802489,0.5885794,111670.0,111650.0,0.29221121]
[1760585802702,0.56037229,111660.0,111650.0,0.17913121]
[1760585802908,0.56037229,111660.0,111650.0,0.29221121]
[1760585803330,0.38125712,111660.0,111650.0,0.29221121]
[1760585803547,0.64109975,111670.0,111650.0,0.29221121]
[1760585803977,0.98109975,111670.0,111660.0,0.11304]
[1760585804259,0.35922129,111670.0,111660.0,0.17911517]
[1760585804475,0.35922129,111670.0,111650.0,0.26882133]
[1760585804476,0.51909913,111670.0,111650.0,0.26882133]
[1760585804703,0.51909913,111670.0,111660.0,0.11304]
[1760585804919,0.95287758,111670.0,111660.0,0.11308]
[1760585805139,0.95337403,111670.0,111660.0,0.29219517]
[1760585805363,0.34049645,111670.0,111660.0,0.17911517]
[1760585805574,0.34049645,111670.0,111660.0,0.38184529]
[1760585806011,0.34049645,111670.0,111660.0,0.38301239]
[1760585806877,0.34049645,111670.0,111660.0,0.26997239]
[1760585807089,0.34049645,111670.0,111660.0,0.38301239]
[1760585807572,0.00049645,111670.0,111660.0,0.26997239]
[1760585808106,0.00049645,111670.0,111660.0,0.38305239]
[1760585808969,0.00049645,111670.0,111660.0,0.26997239]
[1760585809184,0.00049645,111670.0,111660.0,0.38305239]
[1760585809620,0.00049645,111670.0,111660.0,0.81683084]
[1760585812605,0.00049645,111670.0,111660.0,0.26997239]
[1760585812818,0.00049645,111670.0,111660.0,0.81679084]
[1760585813423,0.00049645,111670.0,111660.0,0.26997239]
[1760585813632,0.00049645,111670.0,111660.0,0.38301239]
[1760585814159,0.00049645,111670.0,111660.0,0.26997239]
[1760585814376,0.00049645,111670.0,111660.0,0.38301239]
[1760585815008,0.00049645,111670.0,111660.0,0.26997239]
[1760585815218,0.00049645,111670.0,111660.0,0.38297239]
[1760585815869,0.00049645,111670.0,111660.0,0.26997239]
[1760585816078,0.00049645,111670.0,111660.0,0.38297239]
[1760585816263,0.00049645,111670.0,111660.0,0.26997239]
[1760585816500,0.00049645,111670.0,111660.0,0.38297239]
[1760585816957,0.00049645,111670.0,111660.0,0.43677239]
[1760585817600,0.00049645,111670.0,111660.0,1.15941412]
[1760585818465,0.00049645,111670.0,111660.0,1.04641412]
[1760585818688,0.00049645,111670.0,111660.0,1.15941412]
[1760585818920,0.00049645,111670.0,111660.0,0.49324138]
[1760585819140,0.00049645,111670.0,111660.0,1.04641412]
[1760585819371,0.00049645,111670.0,111660.0,1.15941412]
[1760585820065,0.00049645,111670.0,111660.0,0.35995467]
[1760585820278,0.00049645,111670.0,111660.0,0.47295467]
[1760585821203,0.00049645,111670.0,111660.0,0.35995467]
[1760585821419,0.00049645,111670.0,111660.0,0.47291467]
[1760585822068,0.00049645,111670.0,111660.0,0.32373239]
[1760585822282,0.00049645,111670.0,111660.0,0.43673239]
[1760585822737,0.00049645,111670.0,111660.0,0.32373239]
[1760585823183,0.00049645,111670.0,111660.0,0.43673239]
[1760585824318,0.00049645,111670.0,111660.0,0.43773239]
[1760585825832,0.00049645,111670.0,111660.0,0.32473239]
[1760585826513,0.00049645,111670.0,111660.0,0.27097239]
[1760585826746,0.00049645,111670.0,111660.0,0.43769239]
[1760585826948,0.00049645,111670.0,111660.0,0.32473239]
[1760585827254,0.00049645,111670.0,111660.0,0.43769239]
[1760585827424,0.00049645,111670.0,111660.0,0.43773239]
[1760585827639,0.00049645,111670.0,111660.0,0.43769239]
[1760585827857,0.00049645,111670.0,111660.0,0.32473239]
[1760585828063,0.00049645,111670.0,111660.0,0.43769239]
[1760585829807,0.00049645,111670.0,111660.0,0.32473239]
[1760585830256,0.00049645,111670.0,111660.0,0.43769239]
[1760585830486,0.00049645,111670.0,111660.0,0.32473239]
[1760585830913,0.00049645,111670.0,111660.0,0.43769239]
[1760585831380,0.00049645,111670.0,111660.0,0.32473239]
[1760585831604,0.00049645,111670.0,111660.0,0.43769239]
[1760585831805,0.00049645,111670.0,111660.0,0.32473239]
[1760585832011,0.00049645,111670.0,111660.0,0.43769239]
[1760585832748,0.00049645,111670.0,111660.0,0.32473239]
[1760585832956,0.00049645,111670.0,111660.0,0.43765239]
[1760585833165,0.00049645,111670.0,111660.0,0.32473239]
[1760585833374,0.00049645,111670.0,111660.0,0.43765239]
[1760585833585,0.00049645,111670.0,111660.0,0.32473239]
[1760585834009,0.00049645,111670.0,111660.0,1.10382513]
[1760585834229,0.00049645,111670.0,111660.0,1.14000741]
[1760585834440,0.00049645,111670.0,111660.0,1.02708741]
[1760585834658,0.00049645,111670.0,111660.0,1.14000741]
[1760585836584,0.00049645,111670.0,111660.0,1.02708741]
[1760585836793,0.00049645,111670.0,111660.0,1.14000741]
[1760585837013,0.00049645,111670.0,111660.0,1.13900741]
[1760585837445,0.00049645,111670.0,111660.0,1.14000741]
[1760585839975,0.00049645,111670.0,111660.0,1.13996741]
[1760585840682,0.45049645,111670.0,111660.0,1.13996741]
[1760585841371,0.22138919,111670.0,111660.0,1.02708741]
[1760585841581,0.22138919,111670.0,111660.0,1.13996741]
[1760585842035,0.22138919,111670.0,111660.0,0.47379467]
[1760585842257,0.22138919,111670.0,111660.0,1.02708741]
[1760585842463,0.22138919,111670.0,111660.0,1.13996741]
[1760585843803,0.22138919,111670.0,111660.0,1.02708741]
[1760585844451,0.22138919,111670.0,111660.0,1.13996741]
[1760585844663,0.22138919,111670.0,111660.0,1.02708741]
[1760585844880,0.22138919,111670.0,111660.0,1.13996741]
[1760585845212,0.22138919,111670.0,111660.0,1.02708741]
[1760585845430,0.22138919,111670.0,111660.0,0.8552415]
[1760585846475,0.22138919,111670.0,111660.0,1.23672833]
[1760585848670,0.22138919,111670.0,111660.0,1.12388833]
[1760585848886,0.22138919,111670.0,111660.0,1.23672833]
[1760585850411,0.22138919,111670.0,111660.0,1.12388833]
[1760585850655,0.22138919,111670.0,111660.0,1.23672833]
[1760585851303,0.22138919,111670.0,111660.0,0.8552415]
[1760585853689,0.22138919,111670.0,111660.0,0.7424015]
[1760585854374,0.22138919,111670.0,111660.0,0.8552015]
[1760585854601,0.22138919,111670.0,111660.0,0.7424015]
[1760585854819,0.22138919,111670.0,111660.0,0.8552015]
[1760585855036,0.22138919,111670.0,111660.0,0.7424015]
[1760585855256,0.22138919,111670.0,111660.0,0.8552015]
[1760585855471,0.22138919,111670.0,111660.0,0.7424015]
[1760585855676,0.22138919,111670.0,111660.0,0.8552015]
[1760585856084,0.22138919,111670.0,111660.0,0.7424015]
[1760585856290,0.22138919,111670.0,111660.0,0.8552015]
[1760585857310,0.22138919,111670.0,111660.0,0.7424015]
[1760585857516,0.22138919,111670.0,111660.0,0.8552015]
[1760585857726,0.22138919,111670.0,111660.0,0.7424015]
[1760585857997,0.22138919,111670.0,111660.0,0.8552015]
[1760585858440,0.2068207,111670.0,111660.0,0.8552015]
[1760585859118,0.36005228,111710.0,111700.0,0.17905102]
[1760585859328,0.53908728,111710.0,111700.0,0.17905102]
[1760585859537,0.92057411,111710.0,111700.0,0.29185102]
[1760585859953,0.58057411,111710.0,111700.0,0.29185102]
[1760585860382,0.58057411,111710.0,111700.0,0.29181102]
[1760585860809,0.40153911,111710.0,111700.0,0.29181102]
[1760585861014,0.58157411,111710.0,111700.0,0.29181102]
[1760585862983,0.58157411,111710.0,111700.0,0.34557102]
[1760585863618,0.58157411,111710.0,111700.0,0.23281102]
[1760585864009,0.58157411,111710.0,111700.0,0.34557102]
[1760585865292,0.40253911,111710.0,111700.0,0.34557102]
[1760585866366,0.58157411,111710.0,111700.0,0.34557102]
[1760585866804,0.58157411,111710.0,111700.0,0.23281102]
[1760585866975,0.58157411,111710.0,111700.0,0.34553102]
[1760585867751,0.58157411,111710.0,111700.0,0.23281102]
[1760585867952,0.58157411,111710.0,111700.0,0.34553102]
[1760585868196,0.58157411,111710.0,111700.0,0.23281102]
[1760585868407,0.58157411,111710.0,111700.0,0.34553102]
[1760585868616,0.58157411,111710.0,111700.0,0.23281102]
[1760585868971,0.58157411,111710.0,111700.0,0.34553102]
[1760585870211,0.58157411,111710.0,111700.0,0.23281102]
[1760585870432,0.40253911,111710.0,111700.0,0.23281102]
[1760585870968,0.40253911,111710.0,111700.0,0.34553102]
[1760585871361,0.38248683,111710.0,111700.0,0.23281102]
[1760585871558,0.56152183,111710.0,111700.0,0.23281102]
[1760585871771,0.56152183,111710.0,111700.0,0.34553102]
[1760585871971,0.56152183,111710.0,111700.0,0.23281102]
[1760585872186,0.56152183,111710.0,111700.0,0.34553102]
[1760585872788,0.38248683,111710.0,111700.0,0.34553102]
[1760585873106,0.001,111710.0,111700.0,0.32250114]
[1760585873241,0.001,111710.0,111700.0,0.43522114]
[1760585874042,0.4023485,111720.0,111710.0,0.179035]
[1760585874249,0.4023485,111720.0,111710.0,0.26872512]
[1760585874690,0.02104633,111720.0,111710.0,0.26872512]
[1760585874893,0.4023485,111720.0,111710.0,0.26872512]
[1760585875216,0.38401167,111720.0,111710.0,0.26872512]
[1760585875504,0.38501167,111720.0,111710.0,0.38144512]
[1760585876540,0.38401167,111720.0,111710.0,0.38144512]
[1760585876982,0.0027095,111720.0,111710.0,0.38144512]
[1760585877199,0.38501167,111720.0,111710.0,0.38144512]
[1760585877607,0.38401167,111720.0,111710.0,0.38144512]
[1760585878236,0.38401167,111720.0,111710.0,0.26872512]
[1760585878439,0.38401167,111720.0,111710.0,0.38144512]
[1760585878842,0.38401167,111720.0,111710.0,0.26872512]
[1760585879224,0.38401167,111720.0,111710.0,0.38144512]
[1760585879832,0.0027095,111720.0,111710.0,0.38144512]
[1760585880003,0.38401167,111720.0,111710.0,0.26872512]